bitfinex-derivatives/quotes_ETHF0:USTF0_20230903
["timestamp","ask_amount","ask_price","bid_price","bid_amount"]
[1693772271512,13.74125578,1637.8,1637.7,12.02829352]
[1693772271810,14.23173304,1637.8,1637.7,12.02829352]
[1693772272011,10.68772578,1637.8,1637.7,12.02829352]
[1693772278515,10.68772578,1637.8,1637.7,9.16113]
[1693772282625,10.68772578,1637.8,1637.7,12.02829352]
[1693772284322,10.68772578,1637.8,1637.7,9.16113]
[1693772284522,10.68772578,1637.8,1637.6,5.8030942]
[1693772284523,5.497,1637.7,1637.6,6.58693772]
[1693772284716,19.5694,1637.7,1637.6,9.64074772]
[1693772284917,19.5694,1637.7,1637.6,6.58693772]
[1693772285220,19.5694,1637.7,1637.6,3.05378]
[1693772285613,19.5694,1637.7,1637.5,6.10786]
[1693772285815,14.65855,1637.6,1637.5,9.643296]
[1693772286521,11.6047,1637.6,1637.5,9.643296]
[1693772293029,11.6047,1637.6,1637.5,12.51045952]
[1693772305848,11.6047,1637.6,1637.5,9.643296]
[1693772306552,11.6047,1637.6,1637.5,12.51045952]
[1693772311555,11.6047,1637.6,1637.5,9.643296]
[1693772312049,11.6047,1637.6,1637.5,9.16181]
[1693772312658,11.6047,1637.6,1637.5,12.02897352]
[1693772316758,5.497,1637.6,1637.5,15.08301352]
[1693772318559,5.497,1637.9,1637.5,20.58001352]
[1693772318757,7.8998,1637.9,1637.6,2.26993648]
[1693772318957,7.8998,1637.9,1637.7,15.08184352]
[1693772319258,7.8998,1637.9,1637.8,2.26993648]
[1693772319560,7.8998,1637.9,1637.8,14.48385648]
[1693772342481,2.4028,1637.9,1637.8,19.98085648]
[1693772363195,14.00638,1637.9,1637.8,9.16044]
[1693772363392,17.05967,1637.9,1637.8,6.10696]
[1693772363594,20.11296,1637.9,1637.7,6.10713]
[1693772363796,7.8913,1637.8,1637.7,6.10713]
[1693772364095,17.05174,1637.8,1637.7,6.10734]
[1693772371498,17.05174,1637.8,1637.7,3.05367]
[1693772371795,17.05174,1637.8,1637.6,9.6519534]
[1693772371999,17.06611,1637.7,1637.6,9.6520334]
[1693772372904,20.11978,1637.7,1637.6,3.5445534]
[1693772373399,20.11978,1637.7,1637.6,6.5984034]
[1693772375096,20.11978,1637.7,1637.6,3.5445534]
[1693772375303,20.11978,1637.7,1637.6,6.5984034]
[1693772375700,20.11978,1637.7,1637.6,3.5445534]
[1693772376005,25.61678,1637.7,1637.6,0.4907034]
[1693772376205,25.61678,1637.7,1637.5,6.10798]
[1693772376504,17.22775,1637.6,1637.5,6.10798]
[1693772376699,20.2816,1637.6,1637.5,3.05404]
[1693772376907,20.2816,1637.6,1637.4,7.49544054]
[1693772377203,14.13348,1637.5,1637.4,10.54967054]
[1693772380308,14.13348,1637.5,1637.4,9.65031746]
[1693772381003,14.13348,1637.5,1637.4,12.51748098]
[1693772381206,14.13348,1637.5,1637.4,9.65031746]
[1693772382300,17.18752,1637.5,1637.4,9.65031746]
[1693772384110,17.18752,1637.5,1637.4,15.63281098]
[1693772384111,8.0254,1637.5,1637.4,15.63281098]
[1693772384312,11.07944,1637.5,1637.4,15.63281098]
[1693772384609,14.13348,1637.5,1637.4,15.63281098]
[1693772385111,11.07944,1637.5,1637.4,15.63281098]
[1693772387807,8.0254,1637.5,1637.4,15.63281098]
[1693772388114,11.07944,1637.5,1637.4,15.63281098]
[1693772388411,14.13348,1637.5,1637.4,12.76564746]
[1693772388912,14.13348,1637.5,1637.4,15.63281098]
[1693772402624,14.13348,1637.5,1637.4,12.76564746]
[1693772406434,14.13348,1637.5,1637.4,15.63281098]
[1693772407436,8.0254,1637.5,1637.4,15.63281098]
[1693772412833,11.07944,1637.5,1637.4,15.63281098]
[1693772415540,8.0254,1637.5,1637.4,15.63281098]
[1693772422250,8.0254,1637.5,1637.4,12.76564746]
[1693772422644,11.07944,1637.5,1637.4,15.63281098]
[1693772427048,11.07944,1637.5,1637.4,12.76564746]
[1693772427246,17.18752,1637.5,1637.4,3.54196746]
[1693772428755,17.18752,1637.5,1637.4,6.59621746]
[1693772443369,17.18752,1637.5,1637.4,6.59623746]
[1693772443670,17.18752,1637.5,1637.4,3.54196746]
[1693772444967,17.18752,1637.5,1637.4,6.59623746]
[1693772452978,17.18752,1637.5,1637.4,9.46340098]
[1693772457787,17.18752,1637.5,1637.4,6.59623746]
[1693772459984,17.18752,1637.5,1637.4,9.46340098]
[1693772460888,17.18752,1637.5,1637.4,9.52450098]
[1693772461692,17.18752,1637.5,1637.4,6.65733746]
[1693772462488,17.18752,1637.5,1637.4,9.52450098]
[1693772462785,14.13356,1637.5,1637.4,12.57877098]
[1693772473700,17.18764,1637.5,1637.4,12.57877098]
[1693772474301,17.18764,1637.5,1637.4,9.71160746]
[1693772477197,17.18764,1637.5,1637.4,12.57877098]
[1693772477705,17.18764,1637.5,1637.4,9.71160746]
[1693772479205,17.18764,1637.5,1637.4,12.57877098]
[1693772489616,17.18764,1637.5,1637.4,9.52450098]
[1693772500526,17.18764,1637.5,1637.4,6.65733746]
[1693772503819,17.18764,1637.5,1637.4,9.52450098]
[1693772504322,17.18764,1637.5,1637.4,6.40913098]
[1693772504530,20.24172,1637.5,1637.4,6.40913098]
[1693772505327,20.24172,1637.5,1637.4,9.46340098]
[1693772505525,20.24172,1637.5,1637.4,6.59623746]
[1693772506528,17.18764,1637.5,1637.4,6.59623746]
[1693772509327,17.18764,1637.5,1637.4,9.46340098]
[1693772509829,17.18764,1637.5,1637.4,6.59623746]
[1693772515027,17.18764,1637.5,1637.4,9.46340098]
[1693772517438,17.18764,1637.5,1637.4,6.59623746]
[1693772518037,17.18764,1637.5,1637.4,9.65050746]
[1693772518236,17.18764,1637.5,1637.4,12.51767098]
[1693772522246,15.41612788,1637.7,1637.4,12.57877098]
[1693772522247,11.88082781,1637.7,1637.4,12.57877098]
[1693772522445,4.34867631,1637.8,1637.7,19.10724]
[1693772522754,4.15016536,1638.5,1638.0,10.0]
[1693772522948,1.50652169,1638.6,1638.2,13.0]
[1693772523250,5.497,1639.0,1638.6,15.26015]
[1693772523445,5.497,1639.0,1638.8,0.0611]
[1693772523649,5.497,1639.0,1638.9,9.15441]
[1693772523845,5.497,1639.0,1638.9,12.02157352]
[1693772524748,4.03156678,1639.0,1638.9,26.01497578]
[1693772525841,4.03156678,1639.0,1638.9,29.06644578]
[1693772526242,6.41386678,1639.0,1638.9,29.06644578]
[1693772526851,2.3823,1639.0,1638.9,29.06644578]
[1693772529055,0.91697149,1639.0,1638.9,29.06644578]
[1693772533152,0.91697149,1639.0,1638.9,34.56344578]
[1693772534652,0.91697149,1639.0,1638.9,22.83998]
[1693772534855,2.4964,1639.1,1639.0,2.1368098]
[1693772534856,0.97130285,1639.1,1639.0,2.1368098]
[1693772535053,0.97130285,1639.1,1639.0,14.3419698]
[1693772538659,0.97130285,1639.1,1639.0,12.20516]
[1693772540457,5.497,1639.2,1639.0,12.20516]
[1693772540658,2.5258,1639.7,1639.2,15.2546]
[1693772540859,2.5258,1639.7,1639.6,9.15051]
[1693772541759,2.5258,1639.7,1639.6,12.01767352]
[1693772542258,2.5258,1639.7,1639.6,12.07867352]
[1693772542456,2.5258,1639.7,1639.6,12.01767352]
[1693772542666,2.5258,1639.7,1639.6,15.06784352]
[1693772542958,2.5258,1639.7,1639.6,15.12884352]
[1693772543158,5.99267202,1639.9,1639.8,0.061]
[1693772543352,5.99267202,1639.9,1639.8,9.02776352]
[1693772543662,5.99267202,1639.9,1639.8,12.07756352]
[1693772544860,5.99267202,1639.9,1639.8,12.01656352]
[1693772545067,5.99267202,1639.9,1639.8,12.07756352]
[1693772545363,9.04229202,1639.9,1639.8,8.96676352]
[1693772545559,5.99267202,1639.9,1639.8,8.96676352]
[1693772545761,8.53267202,1639.9,1639.8,8.96676352]
[1693772547166,11.58228202,1639.9,1639.8,8.96676352]
[1693772549858,14.63189202,1639.9,1639.8,8.96676352]
[1693772550363,17.68150202,1639.9,1639.7,9.14968]
[1693772550566,11.5966,1639.8,1639.7,3.04995]
[1693772553968,11.5966,1639.8,1639.7,5.91711352]
[1693772555160,11.5966,1639.8,1639.7,3.04995]
[1693772555468,11.5966,1639.8,1639.7,6.09994]
[1693772557163,14.6464,1639.8,1639.6,6.10008]
[1693772558370,14.6464,1639.8,1639.6,12.01732352]
[1693772558570,14.6464,1639.8,1639.6,12.07832352]
[1693772559671,17.1801,1639.8,1639.6,12.01732352]
[1693772560669,17.1801,1639.8,1639.6,12.07832352]
[1693772562470,17.1801,1639.8,1639.6,12.01732352]
[1693772563568,17.1801,1639.8,1639.6,12.07832352]
[1693772564072,17.1801,1639.8,1639.7,0.061]
[1693772564368,17.1801,1639.8,1639.7,6.09998]
[1693772565671,6.08528202,1639.9,1639.7,22.33487482]
[1693772565672,2.54,1639.9,1639.7,22.33487482]
[1693772565873,2.54,1639.9,1639.8,15.38198548]
[1693772566078,2.54,1639.9,1639.8,29.91212196]
[1693772566277,2.54,1639.9,1639.8,28.26446362]
[1693772566473,2.54,1639.9,1639.8,29.85334259]
[1693772567473,2.54,1639.9,1639.8,27.53435508]
[1693772567780,2.54,1639.9,1639.8,29.91434259]
[1693772568178,2.54,1639.9,1639.8,29.1187928]
[1693772568381,2.54,1639.9,1639.8,29.0577928]
[1693772568873,2.54,1639.9,1639.8,29.1187928]
[1693772569078,2.54,1639.9,1639.8,29.0577928]
[1693772574678,1.01443609,1639.9,1639.8,29.0577928]
[1693772577284,1.01443609,1639.9,1639.8,29.55742065]
[1693772579383,1.01443609,1639.9,1639.8,28.77135215]
[1693772581590,1.01443609,1639.9,1639.8,26.38410396]
[1693772581886,1.01443609,1639.9,1639.8,29.55742065]
[1693772582090,1.01443609,1639.9,1639.8,23.33292785]
[1693772584690,1.01443609,1639.9,1639.8,24.9251773]
[1693772587188,1.01443609,1639.9,1639.8,24.9861773]
[1693772587689,1.01443609,1639.9,1639.8,23.33292785]
[1693772604410,1.01443609,1639.9,1639.8,23.39392785]
[1693772604606,1.01443609,1639.9,1639.8,23.33292785]
[1693772607213,1.02443609,1639.9,1639.8,23.33292785]
[1693772609013,12.62063609,1639.9,1639.7,6.09979]
[1693772609216,5.497,1639.8,1639.7,9.14968]
[1693772609413,12.12416395,1639.8,1639.7,6.09978]
[1693772610815,12.12416395,1639.8,1639.7,9.14975]
[1693772611520,11.59658,1639.8,1639.7,9.14975]
[1693772612614,14.05838,1639.8,1639.7,9.14975]
[1693772618825,14.05838,1639.8,1639.7,6.09978]
[1693772619126,17.10817,1639.8,1639.7,3.04989]
[1693772622027,17.10817,1639.8,1639.7,6.09987]
[1693772626928,17.10817,1639.8,1639.6,3.53547471]
[1693772627134,5.497,1639.7,1639.6,6.58557471]
[1693772627336,14.64694,1639.7,1639.6,9.63573471]
[1693772648159,17.14184,1639.7,1639.6,9.63573471]
[1693772653466,17.14184,1639.7,1639.6,9.63586471]
[1693772654265,17.14184,1639.7,1639.6,9.15042]
[1693772663466,14.64694,1639.7,1639.6,9.15042]
[1693772663674,17.26734,1639.7,1639.6,9.15042]
[1693772666665,18.43901018,1639.7,1639.6,9.15042]
[1693772667067,17.26734,1639.7,1639.6,9.15042]
[1693772670867,18.43901018,1639.7,1639.6,9.15042]
[1693772671468,17.26734,1639.7,1639.6,9.15042]
[1693772672370,18.43901018,1639.7,1639.6,9.15042]
[1693772673171,17.26734,1639.7,1639.6,9.15042]
[1693772673764,18.43901018,1639.7,1639.6,9.15042]
[1693772673971,17.26734,1639.7,1639.6,9.15042]
[1693772674673,18.43901018,1639.7,1639.6,9.15042]
[1693772675069,17.26734,1639.7,1639.6,9.15042]
[1693772678276,18.43901018,1639.7,1639.6,9.15042]
[1693772678474,17.26734,1639.7,1639.6,9.15042]
[1693772681377,18.43901018,1639.7,1639.6,9.15042]
[1693772682072,17.26734,1639.7,1639.6,9.15042]
[1693772683576,18.43901018,1639.7,1639.6,9.15042]
[1693772683776,17.26734,1639.7,1639.6,9.15042]
[1693772685281,18.43901018,1639.7,1639.6,9.15042]
[1693772685481,17.26734,1639.7,1639.6,9.15042]
[1693772687981,18.43901018,1639.7,1639.6,9.15042]
[1693772689280,17.26734,1639.7,1639.6,9.15042]
[1693772691280,18.43901018,1639.7,1639.6,9.15042]
[1693772691475,17.26734,1639.7,1639.6,9.15042]
[1693772692081,18.43901018,1639.7,1639.6,9.15042]
[1693772693179,17.26734,1639.7,1639.6,9.15042]
[1693772693979,5.497,1639.7,1639.6,15.06774352]
[1693772694179,2.4618,1639.8,1639.6,20.56474352]
[1693772694377,2.4618,1639.8,1639.7,2.26993648]
[1693772694786,2.4618,1639.8,1639.7,14.46925648]
[1693772704785,8.55649,1639.9,1639.7,14.46925648]
[1693772705089,2.4187,1639.8,1639.7,14.46925648]
[1693772705592,2.4187,1639.8,1639.7,17.33642]
[1693772713798,2.4187,1639.8,1639.7,17.82433916]
[1693772714792,5.46835,1639.8,1639.7,17.82433916]
[1693772718100,8.518,1639.8,1639.7,17.82433916]
[1693772719102,8.518,1639.8,1639.7,14.95717564]
[1693772719399,8.518,1639.8,1639.7,17.82433916]
[1693772720103,8.518,1639.8,1639.7,14.95717564]
[1693772720403,8.518,1639.8,1639.7,17.82433916]
[1693772721100,5.46835,1639.8,1639.7,17.82433916]
[1693772721296,8.518,1639.8,1639.7,17.82433916]
[1693772722097,5.46835,1639.8,1639.7,17.82433916]
[1693772723207,8.518,1639.8,1639.7,23.32133916]
[1693772724199,5.46835,1639.8,1639.7,23.32133916]
[1693772727295,8.518,1639.8,1639.7,23.32133916]
[1693772727606,5.46835,1639.8,1639.7,23.32133916]
[1693772730209,8.518,1639.8,1639.7,23.32133916]
[1693772731406,5.46835,1639.8,1639.7,23.32133916]
[1693772733211,2.4187,1639.8,1639.7,23.32133916]
[1693772733803,5.46834,1639.8,1639.7,23.32133916]
[1693772734507,2.4187,1639.8,1639.7,23.32133916]
[1693772736304,2.4627,1639.9,1639.7,23.32133916]
[1693772736507,0.01,1639.9,1639.8,18.05895346]
[1693772736705,0.01,1639.9,1639.8,19.65278145]
[1693772736999,0.01,1639.9,1639.8,22.21358145]
[1693772737405,0.01,1639.9,1639.8,22.15258145]
[1693772737804,0.01,1639.9,1639.8,25.20272505]
[1693772738600,0.01,1639.9,1639.8,25.20274841]
[1693772739214,0.01,1639.9,1639.8,22.15258145]
[1693772739505,0.01,1639.9,1639.8,20.1954]
[1693772739908,0.01,1639.9,1639.8,21.78926671]
[1693772742314,0.01,1639.9,1639.8,24.83943583]
[1693772742513,0.01,1639.9,1639.8,22.33963583]
[1693772742709,0.01,1639.9,1639.8,24.7304359]
[1693772743012,2.5749,1640.0,1639.9,14.46777648]
[1693772743213,2.5749,1640.0,1639.9,19.96477648]
[1693772744113,2.5749,1640.0,1639.9,22.83194]
[1693772744413,2.5749,1640.0,1639.9,19.96477648]
[1693772744808,2.5749,1640.0,1639.9,22.83194]
[1693772746711,2.5749,1640.0,1639.9,22.89294]
[1693772746910,2.587,1640.1,1640.0,0.061]
[1693772747115,8.54553,1640.4,1640.1,0.061]
[1693772747319,2.5211,1640.3,1640.2,22.82974]
[1693772747619,2.5211,1640.3,1640.2,19.96257648]
[1693772747817,2.5211,1640.3,1640.2,22.82974]
[1693772748911,11.59319,1640.7,1640.2,22.82974]
[1693772749112,2.5211,1640.5,1640.4,17.69112]
[1693772749311,2.5211,1640.5,1640.4,22.82822]
[1693772749512,8.0181,1640.5,1640.4,12.19412]
[1693772749717,8.0181,1640.5,1640.4,15.06128352]
[1693772749914,2.5211,1640.5,1640.4,15.06128352]
[1693772750214,4.9156,1640.5,1640.4,15.06128352]
[1693772755220,16.5093,1640.5,1640.4,9.14559]
[1693772755519,19.55765,1640.5,1640.4,6.09706]
[1693772757016,22.606,1640.5,1640.2,6.09755]
[1693772757218,7.37668375,1640.4,1640.2,3.04875]
[1693772757524,9.14616,1640.3,1640.2,6.09766]
[1693772757715,14.64316,1640.3,1640.2,3.04875]
[1693772758117,14.64316,1640.3,1640.2,6.09766]
[1693772760424,17.18886,1640.3,1640.2,6.09766]
[1693772762126,17.18886,1640.3,1640.2,9.1466]
[1693772763035,20.23758,1640.3,1640.1,6.09798]
[1693772763228,7.37668375,1640.2,1640.1,6.09798]
[1693772763535,16.52341375,1640.2,1640.1,6.09798]
[1693772763729,18.95601375,1640.2,1640.1,6.09798]
[1693772772346,18.95601375,1640.2,1640.1,9.1471]
[1693772779253,5.48151,1640.2,1640.1,15.06338352]
[1693772779549,8.53042,1640.2,1640.1,15.06338352]
[1693772779750,9.02666977,1640.5,1640.1,20.56038352]
[1693772779951,2.5326,1640.4,1640.3,12.25588]
[1693772780145,2.5326,1640.4,1640.3,20.62004352]
[1693772780347,11.59347,1640.6,1640.4,0.061]
[1693772780552,11.59347,1640.6,1640.5,9.14502]
[1693772780553,8.0296,1640.6,1640.5,9.14502]
[1693772780753,11.07775,1640.6,1640.5,12.01218352]
[1693772781053,11.07775,1640.6,1640.5,14.28212]
[1693772781249,8.0296,1640.6,1640.5,17.3305]
[1693772783055,8.0296,1640.6,1640.5,14.46333648]
[1693772783657,8.0296,1640.6,1640.5,17.3305]
[1693772785255,0.49151404,1640.8,1640.5,22.8275]
[1693772785256,11.59276,1640.8,1640.5,22.8275]
[1693772786860,14.64067,1640.8,1640.5,22.8275]
[1693772787057,16.52035375,1640.8,1640.5,22.8275]
[1693772787261,5.497,1640.6,1640.5,6.09668]
[1693772787557,11.59332,1640.6,1640.5,12.01219352]
[1693772788154,11.59332,1640.6,1640.5,15.06057352]
[1693772789059,11.59332,1640.6,1640.5,12.19341]
[1693772789757,11.59274,1640.8,1640.5,20.55757352]
[1693772789961,14.64062,1640.8,1640.5,22.82751]
[1693772791154,14.64057,1640.8,1640.5,22.82751]
[1693772791662,9.14357,1640.8,1640.5,22.82751]
[1693772791959,7.94755,1640.9,1640.7,5.497]
[1693772792164,14.04274,1640.9,1640.8,14.28047]
[1693772792662,14.04274,1640.9,1640.8,11.41330648]
[1693772792965,14.04274,1640.9,1640.8,14.28047]
[1693772793165,19.53974,1640.9,1640.8,14.28047]
[1693772793557,19.53974,1640.9,1640.8,12.01053352]
[1693772793752,19.53974,1640.9,1640.8,9.14337]
[1693772794667,19.53974,1640.9,1640.8,12.01053352]
[1693772795361,19.53974,1640.9,1640.8,9.14337]
[1693772795563,19.53974,1640.9,1640.8,12.01053352]
[1693772796370,19.53974,1640.9,1640.8,9.14337]
[1693772797369,22.58738,1640.9,1640.8,6.09558]
[1693772797671,22.58738,1640.9,1640.8,8.96274352]
[1693772797967,22.58738,1640.9,1640.8,6.09558]
[1693772798868,22.58738,1640.9,1640.8,8.96274352]
[1693772799068,22.58738,1640.9,1640.8,6.09558]
[1693772799264,22.58738,1640.9,1640.7,10.81477648]
[1693772799464,22.58738,1640.9,1640.7,6.09578]
[1693772799673,22.58738,1640.9,1640.7,8.96294352]
[1693772800067,22.58738,1640.9,1640.7,12.01092352]
[1693772800374,19.53974,1640.9,1640.7,12.01092352]
[1693772801272,22.58738,1640.9,1640.7,12.01092352]
[1693772802566,22.58738,1640.9,1640.7,9.14376]
[1693772803374,7.37668375,1640.8,1640.6,6.09615]
[1693772803575,9.14394,1640.7,1640.6,9.14422]
[1693772803878,11.59434,1640.7,1640.6,9.14422]
[1693772804068,14.21324,1640.7,1640.6,9.14422]
[1693772807966,14.21324,1640.7,1640.6,12.01138352]
[1693772808772,14.21324,1640.7,1640.6,9.14422]
[1693772809177,14.21324,1640.7,1640.6,12.01138352]
[1693772810078,14.21324,1640.7,1640.6,9.14422]
[1693772822281,14.21324,1640.7,1640.6,12.01138352]
[1693772822681,14.21324,1640.7,1640.6,9.14422]
[1693772823277,19.71024,1640.7,1640.6,9.14422]
[1693772825084,19.71024,1640.7,1640.6,12.01138352]
[1693772825284,14.21324,1640.7,1640.6,12.01138352]
[1693772827082,14.21324,1640.7,1640.6,15.05957352]
[1693772828788,14.21324,1640.7,1640.6,12.19241]
[1693772829684,5.0693,1640.7,1640.6,15.05957352]
[1693772829988,2.4504,1640.7,1640.6,15.05957352]
[1693772833286,2.4504,1640.7,1640.6,20.55657352]
[1693772834588,5.49837,1640.7,1640.6,20.55657352]
[1693772836180,2.4504,1640.7,1640.6,20.55657352]
[1693772836584,8.54634,1640.7,1640.6,20.55657352]
[1693772838583,14.04334,1640.7,1640.4,8.60642]
[1693772838788,20.13928,1640.7,1640.5,6.09643]
[1693772838985,2.4426,1640.6,1640.5,6.09643]
[1693772839189,16.51488375,1640.6,1640.5,6.09643]
[1693772840191,16.51488375,1640.6,1640.5,3.0482]
[1693772840395,16.51488375,1640.6,1640.5,6.09654]
[1693772848085,16.51488375,1640.6,1640.4,8.60639]
[1693772848293,2.5883,1640.5,1640.4,11.65484]
[1693772848593,11.73335,1640.5,1640.4,14.70337]
[1693772850488,11.73335,1640.5,1640.4,17.57053352]
[1693772851393,11.73335,1640.5,1640.4,14.70337]
[1693772852289,11.73335,1640.5,1640.4,17.57053352]
[1693772852890,11.73335,1640.5,1640.4,14.70337]
[1693772853287,11.73335,1640.5,1640.4,9.20637]
[1693772863291,17.23035,1640.5,1640.4,9.20637]
[1693772866601,20.2787,1640.5,1640.4,6.09684]
[1693772866898,20.2787,1640.5,1640.4,3.04839]
[1693772867100,20.2787,1640.5,1640.4,6.09691]
[1693772875410,20.2787,1640.5,1640.3,3.1096]
[1693772875607,5.497,1640.4,1640.3,3.1096]
[1693772875807,19.57104375,1640.4,1640.3,3.1096]
[1693772876008,22.14514375,1640.4,1640.3,6.15838]
[1693772877704,22.14514375,1640.4,1640.2,6.09776]
[1693772877911,8.0332,1640.3,1640.2,6.09776]
[1693772878216,17.17954,1640.3,1640.2,9.14673]
[1693772882426,20.22832,1640.3,1640.1,6.09802]
[1693772882631,14.64388,1640.2,1640.1,9.20817]
[1693772882823,16.52356375,1640.2,1640.1,9.20817]
[1693772883023,19.03656375,1640.2,1640.1,9.20817]
[1693772885828,19.03656375,1640.2,1640.1,9.14717]
[1693772886022,19.03656375,1640.2,1640.1,9.20817]
[1693772891634,19.03656375,1640.2,1640.1,9.14717]
[1693772892734,19.09746375,1640.2,1640.1,9.14717]
[1693772892936,22.14642375,1640.2,1640.1,6.09802]
[1693772893137,22.14642375,1640.2,1640.1,3.04899]
[1693772893430,22.14642375,1640.2,1640.1,6.09814]
[1693772895535,22.14642375,1640.2,1640.1,9.14729]
[1693772905545,22.14642375,1640.2,1640.1,9.20829]
[1693772907545,19.09746375,1640.2,1640.1,9.20829]
[1693772908841,14.70478,1640.2,1640.1,12.07545352]
[1693772909041,14.70478,1640.2,1640.1,15.12460352]
[1693772913150,9.20778,1640.2,1640.1,15.12460352]
[1693772913649,9.20778,1640.2,1640.1,15.06360352]
[1693772919151,9.20778,1640.2,1640.1,12.19644]
[1693772920553,9.20778,1640.2,1640.1,15.06360352]
[1693772921052,9.20778,1640.2,1640.1,12.19644]
[1693772921551,9.20778,1640.2,1640.1,15.06360352]
[1693772924753,9.20778,1640.2,1640.1,12.19644]
[1693772928957,9.20778,1640.2,1640.1,9.14729]
[1693772929452,9.20778,1640.2,1640.1,9.20829]
[1693772929754,9.20778,1640.2,1640.1,9.14729]
[1693772930056,9.20778,1640.2,1640.1,9.20829]
[1693772930851,9.20778,1640.2,1639.9,3.0495]
[1693772930852,30.91693689,1640.2,1639.9,3.0495]
[1693772931056,0.0609,1639.9,1639.8,6.09922]
[1693772931251,17.75598,1639.9,1639.8,6.09922]
[1693772931452,22.15986375,1639.9,1639.8,6.09922]
[1693772931756,24.64996375,1639.9,1639.8,6.09922]
[1693772935360,24.58906375,1639.9,1639.8,6.09922]
[1693772942364,24.58906375,1639.9,1639.7,6.59335522]
[1693772942869,24.58906375,1639.9,1639.7,9.64315522]
[1693772943366,14.64613,1639.8,1639.7,6.59335522]
[1693772945375,14.64613,1639.8,1639.7,9.64324522]
[1693772956785,14.64613,1639.8,1639.7,6.59335522]
[1693772959586,14.64613,1639.8,1639.7,9.64324522]
[1693772960989,14.64613,1639.8,1639.7,6.59335522]
[1693772968394,14.64613,1639.8,1639.7,9.64324522]
[1693772976194,14.64613,1639.8,1639.7,11.23802271]
[1693772976897,14.64613,1639.8,1639.7,14.10518623]
[1693772978096,14.64613,1639.8,1639.7,12.51040874]
[1693772979893,14.64613,1639.8,1639.7,9.64324522]
[1693772985207,14.64613,1639.8,1639.7,12.51040874]
[1693772987703,17.69584,1639.8,1639.6,6.09996]
[1693772987906,7.37668375,1639.7,1639.6,9.14995]
[1693772988107,16.52635375,1639.7,1639.6,9.14995]
[1693772988303,21.49865375,1639.7,1639.6,9.14995]
[1693772989308,21.49865375,1639.7,1639.6,6.09995]
[1693772994509,14.17378,1639.7,1639.6,15.06727352]
[1693772995906,14.17378,1639.7,1639.6,12.20011]
[1693772996710,17.22367,1639.7,1639.6,15.06727352]
[1693772997111,17.22367,1639.7,1639.6,12.20011]
[1693772999104,17.22367,1639.7,1639.6,15.06727352]
[1693772999309,17.22367,1639.7,1639.6,12.20011]
[1693773000211,17.22367,1639.7,1639.6,12.01719352]
[1693773000509,17.22367,1639.7,1639.6,12.32397963]
[1693773001116,8.54665,1639.9,1639.6,20.87105963]
[1693773001315,11.59623,1639.9,1639.7,2.26993648]
[1693773001612,11.59623,1639.9,1639.8,9.14913]
[1693773001814,14.64581,1639.9,1639.8,9.14913]
[1693773003514,14.64581,1639.9,1639.8,12.01629352]
[1693773003715,14.64581,1639.9,1639.8,9.14913]
[1693773006913,17.75629,1639.9,1639.7,6.09951]
[1693773007210,17.75629,1639.9,1639.6,9.45680611]
[1693773007211,9.14967,1639.7,1639.6,9.45680611]
[1693773007417,14.64667,1639.7,1639.6,9.45680611]
[1693773008516,23.19356,1639.7,1639.6,0.30678611]
[1693773008818,1.87968375,1639.6,1639.4,6.10069]
[1693773009116,14.64778,1639.5,1639.4,6.10069]
[1693773012313,14.64778,1639.5,1639.4,9.15114]
[1693773017025,14.64778,1639.5,1639.4,12.01830352]
[1693773017523,14.64778,1639.5,1639.4,9.15114]
[1693773036744,17.69804,1639.5,1639.4,3.05032]
[1693773037546,17.69804,1639.5,1639.3,11.64552]
[1693773037746,9.82618375,1639.4,1639.3,11.64552]
[1693773037948,18.97753375,1639.4,1639.3,11.64552]
[1693773043249,21.60613375,1639.4,1639.3,11.64552]
[1693773055357,21.60613375,1639.4,1639.3,14.51268352]
[1693773056152,21.60613375,1639.4,1639.3,11.64552]
[1693773060358,21.60613375,1639.4,1639.3,14.51268352]
[1693773060556,17.09785,1639.4,1639.3,17.56332352]
[1693773060864,5.497,1639.4,1639.3,17.56332352]
[1693773061062,8.54745,1639.4,1639.3,17.56332352]
[1693773065066,11.5979,1639.4,1639.3,17.56332352]
[1693773073978,11.5979,1639.4,1639.3,14.69616]
[1693773074580,20.3294,1639.4,1639.3,6.10105]
[1693773074972,22.9162,1639.4,1639.3,6.10105]
[1693773078074,22.9162,1639.4,1639.3,3.05054]
[1693773078275,22.9162,1639.4,1639.2,3.53791306]
[1693773078476,7.37668375,1639.3,1639.2,6.58870306]
[1693773078678,19.57924375,1639.3,1639.2,6.58870306]
[1693773079675,19.57924375,1639.3,1639.2,6.10153]
[1693773079872,19.57924375,1639.3,1639.2,6.10156]
[1693773083981,19.57924375,1639.3,1639.2,9.15238]
[1693773088579,16.52860375,1639.3,1639.2,6.10156]
[1693773088784,16.52860375,1639.3,1639.2,9.15238]
[1693773100604,16.52860375,1639.3,1639.2,6.10156]
[1693773103703,16.52860375,1639.3,1639.2,9.15238]
[1693773122124,17.02446505,1639.3,1639.2,9.15238]
[1693773126321,20.07510505,1639.3,1639.2,3.05074]
[1693773127924,20.07510505,1639.3,1639.2,6.10158]
[1693773129624,20.07510505,1639.3,1639.2,3.05074]
[1693773131322,20.07510505,1639.3,1639.2,6.10158]
[1693773131716,20.07510505,1639.3,1639.2,3.05074]
[1693773132021,20.07510505,1639.3,1639.2,6.10158]
[1693773134124,20.07510505,1639.3,1639.2,3.05074]
[1693773134328,20.07510505,1639.3,1639.2,6.10158]
[1693773134823,20.07510505,1639.3,1639.2,3.05074]
[1693773135024,20.07510505,1639.3,1639.2,6.10158]
[1693773135325,20.07510505,1639.3,1639.2,3.05074]
[1693773135929,20.07510505,1639.3,1639.2,6.10157]
[1693773136229,20.07510505,1639.3,1639.2,3.05074]
[1693773136429,20.07510505,1639.3,1639.2,6.10158]
[1693773136926,20.07510505,1639.3,1639.2,3.05074]
[1693773137429,20.07510505,1639.3,1639.2,6.10157]
[1693773164445,20.07510505,1639.3,1639.2,6.10158]